bitfinex/quotes_ETHUSD_20250422
["timestamp","ask_amount","ask_price","bid_price","bid_amount"]
[1745332710135,5.1086,1646.0,1644.8,12.73067562]
[1745332710136,0.7541,1645.1,1644.8,12.73067562]
[1745332710335,0.7541,1645.3,1644.9,6.13999631]
[1745332710535,0.7541,1645.5,1644.9,6.13996815]
[1745332710720,6.164,1645.4,1645.1,6.078365]
[1745332711029,0.7541,1645.5,1645.0,6.07879859]
[1745332711230,0.7541,1645.5,1645.1,9.68649136]
[1745332711430,0.7541,1645.5,1645.1,10.51239136]
[1745332711833,0.7541,1645.5,1645.1,4.43377986]
[1745332712130,0.7541,1645.5,1645.1,10.51241047]
[1745332712841,6.83131162,1645.5,1645.1,4.43377986]
[1745332713043,0.7541,1645.5,1645.1,10.51243652]
[1745332713411,0.7541,1645.5,1645.1,4.43377986]
[1745332713631,6.83131123,1645.5,1645.1,4.43377986]
[1745332713834,6.83131123,1645.5,1645.1,9.90454008]
[1745332714135,0.7541,1645.5,1645.1,9.90431468]
[1745332714497,0.7541,1645.5,1645.1,3.0]
[1745332714498,6.89205298,1645.5,1645.1,3.0]
[1745332714699,0.81484739,1645.5,1645.1,9.07845517]
[1745332714894,8.42374802,1645.5,1645.0,6.07879663]
[1745332715133,2.3465386,1645.5,1645.1,9.07864315]
[1745332715339,0.7541,1645.5,1645.2,6.13887822]
[1745332715637,6.08102765,1644.5,1643.5,0.8259]
[1745332715804,12.85455756,1644.4,1643.8,6.08344188]
[1745332716002,12.85455756,1644.4,1644.0,6.08259916]
[1745332716003,0.60810277,1644.4,1644.0,6.08259916]
[1745332716208,6.15727319,1644.4,1644.0,3.0]
[1745332716397,6.08163627,1644.3,1644.0,3.0]
[1745332716601,6.91137319,1644.4,1644.0,3.0]
[1745332716602,12.91693984,1644.4,1644.0,3.0]
[1745332716839,6.8353528,1644.4,1644.0,3.0]
[1745332717038,12.9928958,1644.4,1644.0,3.0]
[1745332717242,5.10080893,1644.1,1643.3,6.08531613]
[1745332717398,12.32596475,1644.0,1643.2,6.49147184]
[1745332717602,6.24304649,1644.0,1643.4,9.08494584]
[1745332717826,12.32590709,1644.0,1643.4,9.08494584]
[1745332718027,6.08327408,1643.9,1643.4,6.08494584]
[1745332718215,6.08327408,1643.9,1643.5,3.0]
[1745332718402,6.08436062,1643.6,1643.2,0.4058651]
[1745332718898,6.16054891,1643.6,1643.2,0.4058651]
[1745332719100,11.34386756,1643.6,1643.2,0.4058651]
[1745332719338,6.08503212,1643.4,1643.2,0.4058651]
[1745332719629,0.07607176,1643.3,1643.2,0.4058651]
[1745332719831,6.16138789,1643.3,1643.2,0.4058651]
[1745332720037,6.91548789,1643.3,1643.2,0.4058651]
[1745332720202,0.83017176,1643.3,1643.2,0.4058651]
[1745332721228,0.87186995,1643.5,1643.2,0.4058651]
[1745332721410,6.95646088,1643.5,1643.2,0.4058651]
[1745332721615,0.87186995,1643.5,1643.2,0.4058651]
[1745332721815,6.95647407,1643.5,1643.2,0.4058651]
[1745332722021,0.87186995,1643.5,1643.2,0.4058651]
[1745332722238,0.07606995,1643.5,1643.2,0.4058651]
[1745332722409,0.07606207,1643.6,1643.4,6.08473615]
[1745332722615,0.07606207,1643.6,1643.2,4.10505683]
[1745332722956,0.07606207,1643.6,1643.3,6.08494777]
[1745332723450,6.413,1643.8,1643.5,6.08432863]
[1745332723655,0.87184699,1643.9,1643.5,6.08431614]
[1745332723808,0.87184699,1643.9,1643.7,6.08375422]
[1745332723809,0.7958,1643.9,1643.7,6.08375422]
[1745332724010,20.033,1644.0,1643.9,6.08309507]
[1745332724211,6.413,1644.4,1643.9,6.08309507]
[1745332724450,6.413,1644.4,1644.2,6.08168912]
[1745332724610,6.413,1644.4,1644.2,6.08165745]
[1745332724803,6.413,1644.4,1644.1,0.03051293]
[1745332725138,7.14148238,1644.4,1644.0,12.16496578]
[1745332725350,7.2098,1644.5,1644.1,6.08226965]
[1745332725843,7.2858205,1644.5,1644.0,6.08253793]
[1745332726006,13.36687419,1644.5,1644.0,6.08253793]
[1745332726208,13.29085369,1644.5,1644.0,12.16500193]
[1745332726553,7.2098,1644.5,1644.2,6.08183659]
[1745332726838,7.93078,1644.5,1644.2,6.08183659]
[1745332727039,7.2098,1644.5,1644.3,6.08160417]
[1745332727436,6.414,1644.5,1644.3,6.08144077]
[1745332727644,6.414,1644.7,1644.6,6.08031892]
[1745332727809,20.047,1644.9,1644.6,6.08031892]
[1745332728448,0.07599372,1644.8,1644.5,12.16150508]
[1745332728749,22.13307,1644.9,1644.6,6.08046651]
[1745332728922,20.047,1644.9,1644.6,6.08046651]
[1745332729318,20.047,1644.9,1644.6,6.08024339]
[1745332730123,20.047,1644.9,1644.7,6.0799563]
[1745332730536,20.047,1644.9,1644.7,6.07989985]
[1745332730759,6.414,1645.1,1644.9,6.07935698]
[1745332730984,0.8137,1645.5,1644.9,1.24636645]
[1745332731267,0.8137,1645.5,1645.3,6.07770703]
[1745332731471,0.8137,1645.5,1645.3,6.07762802]
[1745332731652,0.07597289,1645.7,1645.4,6.07747745]
[1745332731846,0.07597289,1645.7,1645.3,6.07762802]
[1745332732362,0.07597289,1645.7,1645.4,6.07743715]
[1745332732534,0.07597289,1645.7,1645.4,6.07754231]
[1745332732878,0.07597289,1645.7,1645.3,6.07762802]
[1745332733066,0.07597289,1645.7,1645.4,6.07740747]
[1745332733268,7.2277,1645.8,1645.5,6.10725986]
[1745332733432,7.2277,1645.8,1645.3,0.8074]
[1745332733767,7.2277,1645.8,1645.4,6.07737289]
[1745332733768,7.2267,1645.8,1645.4,6.07737289]
[1745332734067,7.2267,1645.8,1645.4,6.07732188]
[1745332734247,0.07595595,1645.7,1645.3,6.07767185]
[1745332734447,0.07595595,1645.7,1645.4,6.07742823]
[1745332734622,0.07595595,1645.7,1645.4,6.0773641]
[1745332735326,5.7551822,1646.4,1645.4,6.0773641]
[1745332735327,0.07596104,1645.9,1645.7,6.07628525]
[1745332735629,0.0759449,1646.0,1645.7,6.07628525]
[1745332736631,0.0759449,1646.0,1645.6,6.07662428]
[1745332736855,0.0759449,1646.0,1645.6,6.07656857]
[1745332737032,0.80301939,1646.0,1645.6,6.07654522]
[1745332737364,0.80301939,1646.0,1645.7,6.0763415]
[1745332737546,0.0759449,1646.0,1645.7,6.0763415]
[1745332737746,0.0759449,1646.0,1645.6,6.07656452]
[1745332738369,0.0759449,1646.0,1645.6,12.15312915]
[1745332738547,6.15159402,1646.0,1645.3,3.0]
[1745332738742,6.15159402,1646.0,1645.5,6.07713315]
[1745332739063,6.15159402,1646.0,1645.7,6.07635267]
[1745332739064,6.4869449,1646.0,1645.7,6.07635267]
[1745332739269,0.0759449,1646.0,1645.9,6.07570326]
[1745332739456,0.7828,1646.4,1646.3,6.07422705]
[1745332739663,6.411,1646.5,1646.3,6.07422705]
[1745332739969,0.07592181,1646.4,1646.1,6.07479406]
[1745332740155,6.48692595,1646.5,1646.2,6.07438706]
[1745332740362,7.1379726,1646.5,1646.3,6.07401068]
[1745332740541,0.7828,1646.6,1646.4,6.07385811]
[1745332741035,6.41,1646.7,1646.1,6.07496506]
[1745332741243,6.41,1646.7,1646.4,6.073697]
[1745332741459,6.41,1646.7,1646.5,6.0733375]
[1745332741775,6.41,1646.7,1646.2,3.0]
[1745332741941,6.41,1646.7,1646.5,6.07324908]
[1745332742533,6.41,1646.7,1646.4,6.07366433]
[1745332742534,6.41,1646.7,1646.4,6.0738108]
[1745332742871,6.41,1646.7,1646.5,6.07333796]
[1745332743068,6.41,1646.7,1646.5,6.07329442]
[1745332743270,6.41,1646.7,1646.5,6.07326449]
[1745332743472,0.7828,1647.1,1646.9,6.07181371]
[1745332743780,0.44476674,1647.6,1647.0,6.10154199]
[1745332743781,0.7828,1647.4,1647.0,6.10154199]
[1745332743989,0.7828,1647.4,1646.8,0.797]
[1745332743990,6.92898704,1647.4,1646.9,12.14365605]
[1745332744188,6.07140577,1647.1,1646.6,0.797]
[1745332744473,6.92885697,1647.4,1646.6,0.797]
[1745332744474,0.7828,1647.4,1647.0,6.07145021]
[1745332744771,2.10886338,1647.4,1647.0,6.07164541]
[1745332744985,2.14704025,1647.4,1647.1,6.07101782]
[1745332745135,0.82097687,1647.4,1647.1,6.07101782]
[1745332745339,0.82097687,1647.4,1647.0,6.07144165]
[1745332745541,6.84571575,1647.4,1646.9,6.07178184]
[1745332745765,0.82097687,1647.4,1647.0,6.07164085]
[1745332745971,6.07070391,1647.3,1646.8,6.07221021]
[1745332746173,6.07070391,1647.3,1646.7,6.07261835]
[1745332746174,0.04562972,1647.2,1646.7,6.07261835]
[1745332746470,6.45362972,1647.2,1646.8,6.07225217]
[1745332746669,12.52463818,1647.2,1646.7,6.07253625]
[1745332746881,12.52463818,1647.2,1646.7,12.14505642]
[1745332747082,14.38417233,1647.2,1646.7,6.07252017]
[1745332747276,0.77534715,1647.4,1646.9,6.07201408]
[1745332747483,0.77534715,1647.4,1647.0,6.07154226]
[1745332747672,0.04562972,1647.3,1646.9,6.07185932]
[1745332747868,0.82097687,1647.4,1646.9,6.07175396]
[1745332748060,6.89146027,1647.4,1647.0,6.07161408]
[1745332748259,1.5101229,1647.4,1647.0,6.07161408]
[1745332748459,7.58052925,1647.4,1646.9,6.07174905]
[1745332748689,6.07075869,1647.3,1646.8,6.07217038]
[1745332748987,6.07075869,1647.3,1646.7,6.07256465]
[1745332748988,3.04562972,1647.3,1646.7,6.07258502]
[1745332749174,12.47709577,1647.2,1646.7,6.07247066]
[1745332749349,8.5653409,1647.2,1646.9,6.07186403]
[1745332749689,6.406,1647.2,1646.8,6.07210557]
[1745332749848,7.53484996,1647.4,1647.1,6.07109529]
[1745332749849,7.87049318,1647.4,1647.1,6.07109529]
[1745332750048,7.87049318,1647.4,1647.0,6.0713865]
[1745332750279,7.18134715,1647.4,1647.2,6.07067033]
[1745332750454,6.406,1647.4,1647.2,6.07071343]
[1745332751183,0.04562972,1647.3,1646.9,6.0717553]
[1745332751356,6.45162972,1647.4,1647.0,6.07144424]
[1745332751760,6.406,1647.4,1647.1,6.07107428]
[1745332751966,0.04562972,1647.5,1646.9,0.55]
[1745332752287,12.37543396,1647.5,1647.1,6.07106013]
[1745332752490,6.30562972,1647.5,1647.1,12.14214936]
[1745332752781,6.30562972,1647.5,1647.0,6.07147512]
[1745332752996,6.30562972,1647.5,1647.1,6.0710152]
[1745332753188,7.62143196,1647.5,1647.1,6.0710152]
[1745332753385,7.62143196,1647.5,1646.9,1.21223104]
[1745332753386,0.7828,1647.6,1647.3,6.07049122]
[1745332753586,6.06872207,1647.8,1647.3,6.86753069]
[1745332753892,0.04562972,1647.8,1647.4,6.06996876]
[1745332754189,3.08825941,1649.7,1647.1,9.07125396]
[1745332754190,0.7828,1648.2,1647.8,6.06851778]
[1745332754565,6.89583116,1648.2,1647.7,6.06889676]
[1745332754890,6.75732108,1648.1,1647.6,6.06924884]
[1745332755057,0.04562972,1648.0,1647.6,6.06924884]
[1745332755255,0.04562972,1648.0,1647.5,6.86654732]
[1745332755590,0.04562972,1648.0,1647.6,6.06915552]
[1745332755787,0.04562972,1648.0,1647.5,6.86659457]
[1745332755788,6.258,1647.9,1647.5,6.86659457]
[1745332755996,6.258,1647.9,1647.7,6.0690627]
[1745332756380,0.7828,1647.8,1647.5,6.06961786]
[1745332756677,0.7828,1647.8,1647.5,6.06955703]
[1745332757062,0.7828,1647.8,1647.6,6.06915848]
[1745332757267,0.7828,1647.8,1647.7,6.06906597]
[1745332757487,0.7828,1647.8,1647.6,6.06915848]
[1745332757693,0.7828,1647.8,1647.6,6.06928203]
[1745332758189,6.258,1648.0,1647.9,6.06802799]
[1745332758687,6.258,1648.0,1647.7,6.06891024]
[1745332758893,6.96664297,1648.0,1647.6,6.06912254]
[1745332759094,7.01227269,1648.0,1647.6,12.13829622]
[1745332759294,7.01227269,1648.0,1647.7,6.06904895]
[1745332759494,7.01227269,1648.0,1647.6,6.06912254]
[1745332759695,20.017,1648.2,1647.7,3.06068418]
[1745332760002,20.017,1648.2,1647.8,6.06851017]
[1745332760199,20.017,1648.2,1647.9,6.06828491]
[1745332760499,20.017,1648.2,1647.8,6.06851017]
[1745332760696,6.06785482,1648.1,1647.6,6.06914824]
[1745332760868,26.08442437,1648.2,1647.7,6.06906463]
[1745332761195,6.258,1648.0,1647.6,6.06915397]
[1745332761497,20.017,1648.2,1647.8,6.06855133]
[1745332761683,6.06666917,1648.4,1647.9,6.0681028]
[1745332761995,6.06666917,1648.4,1647.9,6.06809204]
[1745332762182,0.60666692,1648.4,1647.9,6.06808293]
[1745332762496,6.06705729,1648.3,1647.8,12.1368141]
[1745332762678,6.06705729,1648.3,1647.8,12.13687847]
[1745332762873,7.0398,1648.2,1647.9,6.068287]
[1745332763267,7.0398,1648.2,1647.7,6.8659691]
[1745332763462,7.0398,1648.2,1648.0,6.06763183]
[1745332763701,7.0398,1648.2,1647.8,6.06852561]
[1745332763912,12.32482989,1648.1,1647.6,11.82442168]
[1745332764067,6.0679664,1648.0,1647.4,0.45304606]
[1745332764272,6.06903356,1647.8,1647.3,5.7551822]
[1745332764473,0.7828,1647.9,1647.4,6.07001484]
[1745332764474,6.256,1647.7,1647.4,6.07001484]
[1745332765191,6.256,1647.7,1647.4,6.51815158]
[1745332765517,0.7828,1647.9,1647.4,1.67555123]
[1745332765669,6.256,1647.8,1647.5,6.06980273]
[1745332765869,6.256,1647.7,1647.5,6.06955655]
[1745332766069,6.256,1647.7,1647.5,6.06980273]
[1745332766269,6.256,1647.7,1647.5,6.06959508]
[1745332766569,6.256,1647.7,1647.4,7.74548179]
[1745332766807,6.256,1647.7,1647.5,6.06967241]
[1745332767416,6.256,1647.7,1647.5,12.13922532]
[1745332767585,6.256,1647.7,1647.5,6.06955291]
[1745332768213,6.256,1647.7,1647.4,7.74551651]
[1745332768584,6.256,1647.7,1647.4,7.74546587]
[1745332768884,6.256,1647.7,1647.5,6.06980177]
[1745332769314,6.256,1647.7,1647.5,11.15435606]
[1745332769619,6.256,1647.7,1647.6,6.06943432]
[1745332769818,6.256,1647.7,1647.5,11.15429112]
[1745332770200,6.256,1647.7,1647.5,6.06953623]
[1745332770404,6.256,1647.7,1647.5,11.15429112]
[1745332770718,6.256,1648.0,1647.8,6.06857515]
[1745332770921,6.256,1648.0,1647.8,5.08475489]
[1745332771420,6.256,1648.0,1647.6,1.4091]
[1745332771421,6.0684668,1647.9,1647.6,0.6078]
[1745332771615,0.774,1647.8,1647.7,5.08475489]
[1745332771923,6.256,1648.0,1647.7,11.15382086]
[1745332771924,7.03,1648.0,1647.7,11.15382086]
[1745332772123,7.03,1648.0,1647.7,11.15366599]
[1745332772323,7.03,1648.0,1647.7,17.22253408]
[1745332772616,6.256,1647.9,1647.7,17.22253408]
[1745332772915,6.256,1647.9,1647.7,11.15356022]
[1745332773115,6.256,1647.9,1647.7,5.08475489]
[1745332773510,6.256,1647.9,1647.7,11.1535669]
[1745332773707,6.256,1647.9,1647.7,5.08475489]
[1745332773886,6.256,1647.9,1647.7,11.15363555]
[1745332774292,6.256,1647.9,1647.7,11.15357226]
[1745332774500,6.256,1647.9,1647.7,5.08475489]
[1745332774710,0.774,1648.5,1648.0,6.0676694]
[1745332774895,7.03,1648.5,1648.1,6.06734749]
[1745332775101,0.774,1648.5,1648.1,6.06734749]
[1745332775314,6.256,1648.4,1648.1,6.06734749]
[1745332775521,6.256,1648.4,1648.0,11.15251889]
[1745332775701,6.256,1648.4,1648.1,6.06736469]
[1745332776313,0.774,1648.5,1648.2,6.12765075]
[1745332776521,6.256,1648.3,1648.1,1.67438969]
[1745332776721,6.255,1648.3,1648.1,7.74186665]
[1745332777095,6.255,1648.3,1648.1,7.74174384]
[1745332777297,6.255,1648.3,1648.1,6.06735415]
[1745332777522,6.255,1648.3,1648.1,12.1346971]
[1745332777722,0.774,1648.5,1648.1,12.1346971]
[1745332777723,0.774,1648.5,1648.2,6.06722485]
[1745332778071,6.255,1648.4,1648.2,6.06697908]
[1745332778400,6.255,1648.4,1648.2,12.13399986]
[1745332778597,6.255,1648.4,1648.2,6.06697908]
[1745332778798,6.255,1648.4,1648.2,6.06697282]
[1745332778998,6.255,1648.4,1648.1,6.06735954]
[1745332779522,6.255,1648.4,1648.1,12.13470404]
[1745332779729,6.255,1648.4,1648.1,6.06734882]
[1745332780117,6.255,1648.4,1648.0,11.15246142]
[1745332780295,6.06736176,1648.2,1647.8,5.88605489]
[1745332780501,0.8314,1648.1,1647.8,5.53444848]
[1745332780697,6.255,1648.0,1647.8,0.44969359]
[1745332780902,6.255,1648.0,1647.7,6.06882442]
[1745332780903,6.255,1648.0,1647.7,11.15376844]
[1745332781103,6.255,1648.0,1647.7,5.08475489]
[1745332781436,6.255,1648.0,1647.7,11.153789]
[1745332781599,6.255,1648.0,1647.8,6.06869598]
[1745332781797,6.255,1648.0,1647.7,11.15356908]
[1745332782001,6.255,1648.0,1647.9,6.06832938]
[1745332782240,6.255,1648.0,1647.8,6.12921876]
[1745332783235,6.255,1648.0,1647.8,12.19768586]
[1745332783536,6.255,1648.0,1647.8,6.12914719]
[1745332783731,6.0670836,1648.3,1648.0,6.06785161]
[1745332783732,0.8314,1648.3,1648.0,6.06785161]
[1745332784034,0.8314,1648.3,1647.9,5.08475489]
[1745332784249,0.8314,1648.3,1648.1,5.08475489]
[1745332784454,6.174,1648.2,1648.1,5.08475489]
[1745332784603,12.24123518,1648.2,1647.9,5.08475489]
[1745332785017,12.24122568,1648.2,1647.9,5.08475489]
[1745332785430,6.06771919,1648.1,1647.9,5.08475489]
[1745332785615,6.06771919,1648.1,1647.7,7.63518812]
[1745332785616,6.06771919,1648.1,1647.7,12.71994301]
[1745332785921,6.06771919,1648.1,1647.7,11.60453821]
[1745332786506,6.06771919,1648.1,1647.7,6.51978332]
[1745332786826,12.24145803,1648.2,1647.8,6.06863796]
[1745332787030,12.24145803,1648.2,1647.8,6.1293182]
[1745332787340,0.8314,1648.1,1647.8,6.1293182]
[1745332787708,6.8989993,1648.1,1647.7,6.51992915]
[1745332787909,12.96686493,1648.1,1647.7,6.51992915]
[1745332788105,6.8989993,1648.1,1647.7,6.51992915]
[1745332788301,0.8314,1648.3,1648.0,11.15271181]
[1745332788506,0.8314,1648.3,1647.8,6.0683849]
[1745332788507,6.06722876,1648.2,1647.8,6.0683849]
[1745332788728,0.8314,1648.3,1647.7,2.58782934]
[1745332788931,12.1351557,1648.2,1647.7,6.5198655]
[1745332789236,6.174,1648.1,1647.7,12.58858012]
[1745332789443,6.174,1648.1,1647.8,6.12934364]
[1745332790639,6.174,1648.1,1647.8,0.06068018]
[1745332790827,6.174,1648.1,1647.7,6.06886109]
[1745332791028,6.174,1648.1,1647.8,6.06853438]
[1745332791534,6.174,1648.1,1647.8,6.12921421]
[1745332793246,6.174,1648.1,1647.8,0.06067983]
[1745332793453,6.174,1648.1,1647.7,12.13770366]
[1745332793749,6.174,1648.1,1647.7,6.06876093]
[1745332794122,0.8314,1648.0,1647.7,6.06893948]
[1745332794655,0.8314,1648.0,1647.7,6.12962485]
[1745332794809,6.174,1648.1,1647.8,0.06068491]
[1745332795135,6.174,1648.1,1647.8,6.06848619]
[1745332795462,6.174,1648.1,1647.7,6.12958289]
[1745332795611,12.24159376,1648.1,1647.7,6.0689023]
[1745332795807,0.8314,1648.4,1648.0,6.06760329]
[1745332796011,7.0054,1648.4,1648.2,6.06710704]
[1745332796344,6.174,1648.4,1648.3,6.06685676]
[1745332796544,20.006,1648.5,1648.3,6.06685676]
[1745332796745,26.18,1648.5,1648.4,6.06648871]
[1745332797154,26.18,1648.5,1648.3,12.13331965]
[1745332797455,26.18,1648.5,1648.3,6.06663823]
[1745332797819,0.7533,1648.6,1648.4,11.1512436]
[1745332798022,6.3809187,1649.0,1648.5,6.06585821]
[1745332798023,6.173,1648.7,1648.5,6.06585821]
[1745332798520,6.9263,1648.9,1648.6,6.06549769]
[1745332798720,6.9263,1648.9,1648.6,12.13104069]
[1745332798942,6.9263,1648.9,1648.6,6.06549769]
[1745332799349,6.173,1649.1,1648.6,6.4454823]
[1745332799653,6.173,1649.1,1648.8,6.06472601]
[1745332801353,6.173,1649.1,1648.9,6.06448571]
[1745332801562,6.173,1649.4,1649.0,11.14903627]
[1745332801743,6.173,1649.4,1649.0,11.14882098]
[1745332802257,6.173,1649.4,1648.9,6.06447015]
[1745332802434,6.85736362,1649.4,1648.9,6.5195098]
[1745332802635,6.85736362,1649.4,1648.9,6.51949747]
[1745332802850,6.85736362,1649.4,1649.0,6.06427565]
[1745332804120,6.16473362,1649.4,1649.0,6.06427565]
[1745332804831,6.16473362,1649.4,1649.0,6.06413371]
[1745332805157,6.172,1649.5,1649.2,11.14807315]
[1745332805337,6.172,1649.5,1649.3,6.06303664]
[1745332805536,6.172,1649.5,1649.3,6.52513034]
[1745332805856,6.172,1649.5,1649.3,0.4620937]
[1745332806058,0.7533,1649.7,1649.2,11.14821976]
[1745332806266,6.172,1649.6,1649.2,11.14821976]
[1745332806568,6.171,1649.5,1649.3,6.06300546]
[1745332806925,6.171,1649.5,1649.1,0.8074]
[1745332807237,0.74327448,1649.4,1649.1,0.45550346]
[1745332807533,0.74327448,1649.4,1649.0,6.06405093]
[1745332807947,0.74327448,1649.4,1649.0,12.1887344]
[1745332808151,1.43470193,1649.4,1649.0,6.06404759]
[1745332808464,6.0633091,1649.3,1648.7,6.87268972]
[1745332808639,3.69142745,1649.4,1648.6,12.51102994]
[1745332808836,9.0636896,1649.2,1648.6,12.51097986]
[1745332809047,6.171,1649.1,1648.7,6.06524943]
[1745332809248,6.171,1649.1,1648.8,6.06499803]
[1745332809448,6.171,1649.1,1648.7,0.4447836]
[1745332809636,6.171,1649.1,1649.0,6.06428138]
[1745332810064,6.171,1649.1,1648.6,8.4494549]
[1745332810265,6.06480101,1648.9,1648.4,6.06625952]
[1745332810577,6.06590954,1648.6,1648.1,7.89794551]
[1745332810731,6.17,1648.5,1648.1,6.87473948]
[1745332811178,6.17,1648.5,1648.1,6.51689233]
[1745332811325,6.17,1648.5,1648.2,6.06705603]
[1745332811672,6.17,1648.5,1648.1,6.51672271]
[1745332812179,6.17,1648.5,1648.3,6.06675307]
[1745332812330,6.17,1648.5,1648.4,6.06648871]
[1745332812532,6.159,1648.8,1648.6,6.06553638]
[1745332812839,0.8247,1648.9,1648.5,12.13176489]
[1745332813174,6.9837,1648.9,1648.5,12.13172956]
[1745332813382,6.9837,1648.9,1648.4,6.06632673]
[1745332813674,6.06512787,1648.8,1648.4,6.06638366]
[1745332813853,10.2806687,1648.9,1648.4,6.12693156]
[1745332814060,10.2806687,1648.9,1648.5,6.06593195]
[1745332814286,6.97635922,1648.9,1648.6,6.06567075]
[1745332814668,6.97635922,1648.9,1648.6,6.06549553]
[1745332814825,6.97635922,1648.9,1648.4,6.06633495]
[1745332815031,13.04122351,1648.9,1648.4,6.06633495]
[1745332815379,0.81735922,1648.9,1648.6,6.06555272]
[1745332815533,6.159,1648.9,1648.7,6.67164751]
[1745332815745,6.159,1648.9,1648.6,6.06550516]
[1745332815989,6.159,1648.9,1648.6,6.06571288]
[1745332816177,6.159,1648.9,1648.8,6.06501698]
[1745332816543,19.995,1649.0,1648.9,6.06464916]
[1745332816779,6.159,1649.2,1649.0,6.0642148]
[1745332817158,6.159,1649.2,1649.0,12.12828714]
[1745332817491,6.159,1649.2,1649.0,6.06407234]
[1745332817863,6.159,1649.2,1649.0,12.12814762]
[1745332818037,6.159,1649.2,1649.1,6.06391364]
[1745332818342,6.159,1649.5,1649.3,6.06296784]
[1745332819459,6.159,1649.5,1649.4,6.06281071]
[1745332819885,20.4028651,1649.8,1649.5,6.06229029]
[1745332820295,20.4028651,1649.8,1649.4,6.06268039]
[1745332820519,0.39338798,1649.8,1649.7,6.06170818]
[1745332821194,1.17338798,1649.8,1649.4,1.02320603]
[1745332821360,0.78,1649.6,1648.7,0.751]
[1745332821557,6.158,1649.5,1649.3,6.0631181]
[1745332821762,6.938,1649.6,1649.1,6.06391364]
[1745332822062,0.78,1649.6,1649.3,12.12608598]
[1745332822260,0.39338798,1649.8,1649.4,0.751]
[1745332822486,0.39338798,1649.8,1649.4,6.81367724]
[1745332822699,0.39338798,1649.8,1649.4,6.06256557]
[1745332822895,0.39338798,1649.8,1649.5,6.06223456]
[1745332823132,6.55138798,1649.8,1649.5,6.06218717]
[1745332824072,0.78,1649.7,1649.1,6.52418406]
[1745332824270,6.84198451,1649.7,1649.1,6.52418406]
[1745332824483,6.84198451,1649.7,1649.2,6.06336621]
[1745332824685,6.84198451,1649.7,1649.3,6.06309316]
[1745332825098,6.84198451,1649.7,1649.0,6.81515255]
[1745332825099,0.78,1649.7,1649.0,6.81515255]
[1745332825300,6.06367325,1649.2,1648.8,6.06485927]
[1745332825612,12.90504058,1649.2,1648.8,6.06485927]
[1745332825762,6.84136733,1649.2,1648.8,6.51383195]
[1745332826109,6.06480529,1648.9,1648.4,6.84860876]
[1745332826404,13.01143702,1648.8,1648.3,6.06671411]
[1745332826707,6.06591446,1648.6,1648.1,6.06729004]
[1745332827000,0.7893,1648.4,1648.2,6.06696924]
[1745332827209,6.9463,1648.4,1648.2,6.06715832]
[1745332827365,6.157,1648.4,1648.3,6.06685676]
[1745332827700,6.158,1648.8,1648.7,6.06538484]
[1745332828078,6.158,1648.8,1648.5,6.06589289]
[1745332828464,6.158,1648.8,1648.5,12.13179297]
[1745332828677,6.158,1648.8,1648.5,6.06589289]
[1745332828903,6.158,1648.8,1648.5,12.13176288]
[1745332829074,6.158,1648.8,1648.6,6.06569052]
[1745332829276,6.158,1648.8,1648.5,6.06586999]
[1745332829804,6.158,1648.8,1648.6,6.06575169]
[1745332830098,6.7738,1648.8,1648.5,6.06586999]
[1745332830606,6.7738,1648.8,1648.2,9.06714929]
[1745332830607,12.83913646,1648.8,1648.2,3.0]
[1745332830776,12.83913646,1648.8,1648.4,6.06645625]
[1745332830969,12.83909955,1648.8,1648.4,6.06645625]
[1745332831169,6.06552572,1648.7,1648.3,6.06659315]
[1745332831396,0.7893,1648.6,1648.3,6.06659315]
[1745332831702,6.85510505,1648.6,1648.4,0.19231482]
[1745332831901,6.85510505,1648.6,1648.1,6.06736719]
[1745332832100,0.7893,1648.6,1648.2,0.17691286]
[1745332832312,0.7893,1648.6,1647.8,3.0]
[1745332832493,1.16823,1648.6,1648.2,6.06702588]
[1745332832665,7.23405534,1648.6,1648.3,0.1739328]
[1745332832865,6.06648871,1648.4,1648.3,0.1739328]
[1745332833109,12.22448871,1648.4,1648.0,6.0678436]
[1745332833317,6.158,1648.4,1648.1,6.2434422]
[1745332833622,6.7738,1648.4,1648.1,0.17597799]
[1745332833976,6.7738,1648.4,1648.0,6.06782022]
[1745332834303,0.7893,1648.3,1648.1,0.17675831]
[1745332834505,6.8561961,1648.3,1647.9,6.06815144]
[1745332834719,6.8561961,1648.3,1647.7,6.85117171]
[1745332834720,6.06730245,1648.2,1648.0,0.170354]
[1745332834868,6.06746699,1648.2,1648.0,0.170354]
[1745332835069,6.06760778,1648.1,1647.6,9.06924352]
[1745332835272,0.7893,1647.9,1647.7,6.24584178]
[1745332835912,26.06469765,1647.8,1647.7,0.17678792]
[1745332836209,26.06469765,1647.8,1646.7,6.85472016]
[1745332836210,6.85899229,1647.6,1646.7,6.85487764]
[1745332836396,12.22988532,1647.5,1647.0,6.07130647]
[1745332836772,12.22988532,1647.5,1647.1,0.17953344]
[1745332837169,6.16,1647.5,1647.1,6.25074715]
[1745332837924,12.22986607,1647.5,1647.1,0.17953344]
[1745332838085,0.7893,1647.4,1647.1,0.17953344]
[1745332838304,6.16,1647.3,1647.1,3.0]
[1745332838528,0.7893,1647.4,1647.2,0.18118085]
[1745332838934,6.16,1647.3,1647.1,3.0]
[1745332839240,0.7893,1647.4,1647.3,0.18063074]
[1745332839408,6.9513,1647.4,1647.2,0.18118085]
[1745332839610,7.64643,1647.4,1647.3,0.18063074]
[1745332839906,7.64643,1647.4,1647.0,3.0]
[1745332840094,7.64643,1647.4,1647.1,0.18173104]
[1745332840299,6.9513,1647.4,1647.1,0.18173104]
[1745332840938,6.9513,1647.4,1647.1,6.25299768]
[1745332841136,0.7893,1647.4,1647.2,3.0]
[1745332841345,29.32171205,1647.8,1647.1,3.24244047]
[1745332841346,0.7893,1647.6,1647.1,3.24244047]
[1745332841510,6.162,1647.7,1647.3,3.95379729]
[1745332841715,6.162,1647.7,1647.6,9.06943432]
[1745332841937,6.162,1647.7,1647.6,3.1779868]
[1745332842113,6.162,1647.7,1647.6,0.1779868]
[1745332842437,6.162,1647.7,1647.6,6.24742112]
[1745332842612,6.162,1647.7,1647.6,3.1779868]
[1745332843130,6.162,1647.7,1647.6,9.24742112]
[1745332843333,6.242,1647.8,1647.7,6.0687574]